bitfinex-derivatives/quotes_ETHF0:USTF0_20250422
["timestamp","ask_amount","ask_price","bid_price","bid_amount"]
[1745353639677,41.97698,1698.2,1698.1,1.7039]
[1745353640180,43.68068,1698.2,1698.1,1.7039]
[1745353640870,1.17705,1698.1,1698.0,3.2078]
[1745353641073,2.88075,1698.1,1698.0,3.2078]
[1745353641475,1.17712,1698.0,1697.9,9.30079]
[1745353641677,2.88082,1698.0,1697.9,9.30079]
[1745353641880,2.88082,1698.0,1697.9,4.101]
[1745353642485,1.17719,1697.9,1697.8,3.2078]
[1745353642677,40.8,1698.2,1697.9,1.6709]
[1745353642873,41.97704,1698.2,1698.1,1.17705]
[1745353643276,41.97704,1698.2,1698.1,2.84795]
[1745353643471,41.97704,1698.2,1698.1,4.03595]
[1745353644185,40.8,1698.2,1698.0,4.2945]
[1745353644383,40.8,1698.2,1698.1,2.84795]
[1745353645276,1.25852445,1698.6,1698.2,5.88486]
[1745353645481,1.17677,1698.5,1698.4,4.38461]
[1745353645683,41.97677,1698.5,1698.4,4.38461]
[1745353646177,41.97677,1698.5,1698.4,6.60951]
[1745353646382,40.8,1698.5,1698.4,6.60951]
[1745353647186,40.8,1698.5,1698.4,12.93151]
[1745353647389,1.18559095,1698.6,1698.5,1.17677]
[1745353647586,1.18559095,1698.6,1698.5,1.7767]
[1745353648886,1.17677,1698.5,1698.4,6.60951]
[1745353649080,2.92997,1698.5,1698.4,6.60951]
[1745353649279,1.7532,1698.5,1698.4,6.60951]
[1745353651085,0.00884095,1698.6,1698.5,1.17677]
[1745353651282,0.00884095,1698.6,1698.5,2.90867]
[1745353652488,1.18555095,1698.6,1698.5,2.90867]
[1745353653087,1.18555095,1698.6,1698.5,9.23067]
[1745353653489,0.00884095,1698.6,1698.5,9.23067]
[1745353654190,1.18555095,1698.6,1698.5,9.23067]
[1745353655186,1.18555095,1698.6,1698.5,2.90867]
[1745353657294,1.17677,1698.5,1698.4,6.60952]
[1745353657497,1.18559095,1698.6,1698.5,1.17677]
[1745353657793,2.81149095,1698.6,1698.5,2.88547]
[1745353658789,0.00884095,1698.6,1698.5,2.88547]
[1745353660084,0.00884095,1698.6,1698.5,9.20747]
[1745353660701,0.00884095,1698.6,1698.5,13.30647]
[1745353660992,6.04638,1699.0,1698.9,1.1765]
[1745353661190,1.17639,1699.1,1699.0,1.17636]
[1745353661394,41.97639,1699.1,1699.0,2.30726]
[1745353661797,40.8,1699.1,1699.0,3.92656]
[1745353662186,41.97636,1699.1,1699.0,3.92656]
[1745353662392,0.00884095,1699.2,1699.1,1.17636]
[1745353662587,0.00884095,1699.2,1699.1,10.10246]
[1745353662901,1.1008,1699.7,1699.2,2.94062]
[1745353663194,1.1008,1699.7,1699.5,1.17608]
[1745353663195,2.83816,1699.6,1699.5,1.17608]
[1745353663786,1.17595,1699.7,1699.6,1.17595]
[1745353663982,1.17601,1699.6,1699.5,7.12863]
[1745353664181,1.7248,1699.6,1699.5,7.12863]
[1745353664387,2.90081,1699.6,1699.5,7.12863]
[1745353664784,1.7248,1699.6,1699.5,7.12863]
[1745353665194,8.0468,1699.6,1699.5,7.12863]
[1745353665701,6.322,1699.6,1699.5,7.12863]
[1745353665997,7.49801,1699.6,1699.5,3.2078]
[1745353666191,1.17608,1699.5,1699.4,8.48291]
[1745353666395,2.90088,1699.5,1699.4,8.48291]
[1745353666986,6.322,1699.6,1699.5,1.17608]
[1745353667191,2.82693095,1699.7,1699.5,1.6739]
[1745353667392,2.82694095,1699.7,1699.6,1.17601]
[1745353668203,9.14894095,1699.7,1699.6,1.17601]
[1745353669898,7.97294095,1699.7,1699.6,4.38381]
[1745353670592,7.97294095,1699.7,1699.6,6.02961]
[1745353671301,5.42536507,1699.7,1699.6,6.02961]
[1745353671704,3.85879507,1699.7,1699.6,11.02961]
[1745353672101,2.9056,1700.2,1700.1,1.17567]
[1745353672102,1.73,1700.2,1700.1,1.17567]
[1745353672906,1.73,1700.2,1700.1,2.82197]
[1745353673096,8.052,1700.2,1700.1,2.82197]
[1745353673495,9.2276,1700.2,1700.1,1.6463]
[1745353673703,9.2276,1700.2,1700.1,1.17567]
[1745353674104,8.052,1700.2,1700.1,1.17567]
[1745353674299,8.052,1700.2,1700.1,4.38347]
[1745353674497,9.2276,1700.2,1700.1,4.38347]
[1745353675100,8.052,1700.2,1700.1,4.38347]
[1745353675398,6.322,1700.2,1700.1,6.02977]
[1745353676207,0.00884095,1700.3,1700.2,1.1756]
[1745353676507,0.00884095,1700.3,1700.2,2.9593]
[1745353678103,6.33084095,1700.3,1700.2,2.9593]
[1745353678307,6.33084095,1700.3,1700.2,7.0553]
[1745353678508,8.07954095,1700.3,1700.2,7.0553]
[1745353679409,6.33084095,1700.3,1700.2,7.0553]
[1745353680013,1.6894,1700.6,1700.5,1.17539]
[1745353680317,1.17518,1700.8,1700.7,1.17519]
[1745353680517,40.8,1700.8,1700.7,1.17519]
[1745353681020,42.4894,1700.8,1700.7,1.17519]
[1745353681213,49.98658,1700.8,1700.7,1.17519]
[1745353682121,1.17525,1700.7,1700.6,1.17526]
[1745353682419,2.92741,1700.7,1700.6,1.17532]
[1745353683213,8.0741,1700.7,1700.6,1.17532]
[1745353683413,9.24935,1700.7,1700.6,5.27132]
[1745353683817,9.24935,1700.7,1700.5,1.17534]
[1745353683818,1.17539,1700.6,1700.5,1.17534]
[1745353684018,1.17546,1700.4,1700.3,1.17552]
[1745353684208,1.17553,1700.3,1700.2,5.27055]
[1745353684412,2.92763,1700.3,1700.2,5.27055]
[1745353684914,1.7521,1700.3,1700.2,5.27055]
[1745353685114,8.0741,1700.3,1700.2,5.27055]
[1745353685316,9.24963,1700.3,1700.2,5.27055]
[1745353685919,9.24963,1700.3,1700.2,1.17555]
[1745353688427,1.17567,1700.1,1700.0,0.00884095]
[1745353689121,2.93935,1700.0,1699.6,3.97896]
[1745353689312,1.17601,1699.6,1699.5,4.38384]
[1745353689517,1.17601,1699.6,1699.5,4.093]
[1745353689921,1.17608,1699.5,1699.4,1.718]
[1745353690122,2.89608,1699.5,1699.4,5.26915]
[1745353691029,1.72,1699.5,1699.4,5.26915]
[1745353691330,9.21808,1699.5,1699.4,7.00595]
[1745353691724,9.21808,1699.5,1699.4,5.26915]
[1745353691933,1.17615,1699.4,1699.3,5.27901095]
[1745353692119,2.89505,1699.4,1699.3,5.27901095]
[1745353692427,2.89505,1699.4,1699.3,1.18506095]
[1745353693026,2.89505,1699.4,1699.3,2.92186095]
[1745353693328,9.21705,1699.4,1699.3,2.92186095]
[1745353694424,6.322,1699.4,1699.3,2.92186095]
[1745353694626,6.322,1699.4,1699.3,6.12966095]
[1745353695222,42.52287445,1699.6,1699.5,1.17608]
[1745353695527,40.88177445,1699.6,1699.5,5.27008]
[1745353696032,40.88177445,1699.6,1699.5,8.47788]
[1745353696220,47.20377445,1699.6,1699.5,8.47788]
[1745353696520,47.13084095,1699.6,1699.5,8.47788]
[1745353696720,47.13084095,1699.6,1699.5,9.63118]
[1745353697127,40.80884095,1699.6,1699.5,9.63118]
[1745353698133,41.98485095,1699.6,1699.5,9.63118]
[1745353698330,43.76385095,1699.6,1699.5,9.63118]
[1745353700026,42.58784095,1699.6,1699.5,9.63118]
[1745353700232,43.76385095,1699.6,1699.5,9.63118]
[1745353701835,43.76385095,1699.6,1699.5,8.47788]
[1745353702027,43.76385095,1699.6,1699.5,5.27008]
[1745353702229,50.08585095,1699.6,1699.5,5.27008]
[1745353702834,1.17608,1699.5,1699.4,2.90121]
[1745353703031,2.83008,1699.5,1699.4,4.095]
[1745353703536,1.17615,1699.4,1699.3,0.00884095]
[1745353703739,2.86195,1699.4,1699.3,0.00884095]
[1745353703931,2.86195,1699.4,1699.3,1.18506095]
[1745353704131,9.18395,1699.4,1699.3,1.18506095]
[1745353708241,9.18395,1699.4,1699.3,2.79696095]
[1745353709641,6.322,1699.4,1699.3,2.79696095]
[1745353710137,43.62001095,1699.6,1699.5,1.17608]
[1745353710545,0.00884095,1699.6,1699.5,7.08638]
[1745353710746,0.00884095,1699.6,1699.5,11.18138]
[1745353713658,1.18485095,1699.6,1699.5,11.18138]
[1745353716641,1.17615,1699.4,1699.3,3.21664095]
[1745353716840,1.17615,1699.4,1699.3,1.18504095]
[1745353717140,7.49815,1699.4,1699.3,1.18504095]
[1745353718046,7.49815,1699.4,1699.3,0.00884095]
[1745353719040,1.17615,1699.4,1699.3,1.18506095]
[1745353719349,1.17615,1699.4,1699.3,0.00884095]
[1745353720052,7.49815,1699.4,1699.3,0.00884095]
[1745353720841,7.49815,1699.4,1699.3,1.18506095]
[1745353722349,7.49815,1699.4,1699.3,0.00884095]
[1745353724050,10.70595,1699.4,1699.3,0.00884095]
[1745353724253,1.17636,1699.1,1699.0,2.2358]
[1745353724446,1.17643,1699.0,1698.9,10.14582]
[1745353724655,2.83193,1699.0,1698.9,10.14190052]
[1745353726948,3.2807335,1699.5,1698.9,13.96548052]
[1745353727148,2.84040095,1699.6,1699.5,1.17999948]
[1745353727755,2.83648147,1699.6,1699.5,1.17608]
[1745353728256,9.15848147,1699.6,1699.5,1.17608]
[1745353728458,9.15848147,1699.6,1699.4,2.7848]
[1745353728459,1.17608,1699.5,1699.4,3.96089]
[1745353729148,2.94308,1699.5,1699.4,3.96089]
[1745353730456,2.94308,1699.5,1699.4,2.7848]
[1745353730643,2.94308,1699.5,1699.4,3.96095]
[1745353734349,0.00492147,1699.6,1699.5,1.17608]
[1745353734660,0.00492147,1699.6,1699.5,10.11928]
[1745353735255,0.00492147,1699.6,1699.5,16.44128]
[1745353735457,2.84145,1699.9,1699.8,1.17587]
[1745353735857,1.17587,1699.8,1699.7,2.8173]
[1745353736554,1.17587,1699.8,1699.7,3.9446]
[1745353740165,2.89517,1699.8,1699.7,3.9446]
[1745353741860,41.98467095,1699.9,1699.8,1.17587]
[1745353742055,41.98467095,1699.9,1699.8,2.82577]
[1745353742463,43.70397095,1699.9,1699.8,2.82577]
[1745353743566,1.17587,1699.8,1699.7,2.3032]
[1745353743762,2.89117,1699.8,1699.7,3.96804]
[1745353745664,1.17594,1699.7,1699.6,0.00884095]
[1745353745866,7.20644,1699.7,1699.6,0.00884095]
[1745353746062,13.52844,1699.7,1699.6,0.00884095]
[1745353747767,10.32064,1699.7,1699.6,0.00884095]
[1745353747975,13.52844,1699.7,1699.6,0.00884095]
[1745353749764,10.32064,1699.7,1699.6,0.00884095]
[1745353750168,13.52844,1699.7,1699.6,0.00884095]
[1745353753273,10.32064,1699.7,1699.6,0.00884095]
[1745353756368,13.52844,1699.7,1699.6,0.00884095]
[1745353757973,6.322,1699.7,1699.6,1.18485095]
[1745353758275,42.05764445,1699.9,1699.8,1.17587]
[1745353758864,42.05764445,1699.9,1699.8,2.85357]
[1745353759063,48.37964445,1699.9,1699.8,1.6777]
[1745353759567,50.05814445,1699.9,1699.8,1.6777]
[1745353761275,50.05814445,1699.9,1699.8,2.85357]
[1745353761478,48.37964445,1699.9,1699.8,2.85357]
[1745353762275,50.01511095,1699.9,1699.8,1.6777]
[1745353763280,1.17587,1699.8,1699.7,1.1424]
[1745353763479,2.88427,1699.8,1699.7,1.1424]
[1745353763884,2.88427,1699.8,1699.6,6.87874095]
[1745353763885,1.17594,1699.7,1699.6,6.87874095]
[1745353764178,9.14244,1699.7,1699.6,2.78874095]
[1745353766273,9.14244,1699.7,1699.6,1.06614095]
[1745353766679,9.14244,1699.7,1699.6,0.00884095]
[1745353767477,9.14244,1699.7,1699.6,1.63344095]
[1745353771585,7.49794,1699.7,1699.6,2.80945095]
[1745353771985,6.322,1699.7,1699.6,2.80945095]
[1745353772280,7.49794,1699.7,1699.6,2.80945095]
[1745353772485,7.49794,1699.7,1699.6,6.01725095]
[1745353773084,6.322,1699.7,1699.6,6.01725095]
[1745353773380,7.49794,1699.7,1699.6,6.01725095]
[1745353773975,7.49794,1699.7,1699.6,1.63344095]
[1745353774379,9.23554,1699.7,1699.6,1.63344095]
[1745353774577,10.31854,1699.7,1699.6,0.00884095]
[1745353774781,13.52634,1699.7,1699.6,0.00884095]
[1745353774987,10.31854,1699.7,1699.6,0.00884095]
[1745353775778,13.52634,1699.7,1699.6,0.00229316]
[1745353777177,6.322,1699.7,1699.6,1.17830316]
[1745353777383,7.49794,1699.7,1699.6,2.92440316]
[1745353778389,6.322,1699.7,1699.6,2.92440316]
[1745353778589,6.322,1699.7,1699.6,11.13220316]
[1745353781789,6.322,1699.7,1699.6,6.13220316]
[1745353791298,6.30923957,1699.7,1699.6,6.13220316]
[1745353792297,0.00884095,1699.9,1699.8,1.17587]
[1745353792493,0.00884095,1699.9,1699.8,11.12237]
[1745353793088,6.33084095,1699.9,1699.8,11.12237]
[1745353796002,7.50665095,1699.9,1699.8,11.12237]
[1745353796217,6.33084095,1699.9,1699.8,11.12237]
[1745353796796,7.50665095,1699.9,1699.8,11.12237]
[1745353796997,6.33084095,1699.9,1699.8,11.12237]
[1745353797998,7.50665095,1699.9,1699.8,11.12237]
[1745353798199,6.33084095,1699.9,1699.8,11.12237]
[1745353798408,7.50665095,1699.9,1699.8,11.12237]
[1745353798607,9.14115095,1699.9,1699.8,11.12237]
[1745353800400,10.18275095,1699.9,1699.8,11.12237]
[1745353800599,10.18275095,1699.9,1699.8,4.087]
[1745353800910,1.17594,1699.7,1699.6,4.38610316]
[1745353801110,1.7146,1699.8,1699.7,1.17594]
[1745353801304,1.7146,1699.8,1699.7,3.95974]
[1745353802114,9.21247,1699.8,1699.7,3.95974]
[1745353803011,8.0366,1699.8,1699.7,8.04674]
[1745353803311,6.322,1699.8,1699.7,8.04674]
[1745353808016,9.5e-07,1699.9,1699.8,1.17587]
[1745353808309,9.5e-07,1699.9,1699.8,12.04747]
[1745353808516,9.5e-07,1699.9,1699.8,17.86947]
[1745353809723,1.6418,1700.4,1700.3,1.17553]
[1745353809911,1.6418,1700.4,1700.3,8.46933]
[1745353810219,7.9638,1700.4,1700.3,8.46933]
[1745353810417,9.13926,1700.4,1700.3,10.24523]
[1745353810717,7.9638,1700.4,1700.3,10.24523]
[1745353810920,9.13926,1700.4,1700.3,10.24523]
[1745353811113,7.9638,1700.4,1700.3,10.24523]
[1745353811313,6.322,1700.4,1700.3,10.24523]
[1745353812112,0.00884095,1700.5,1700.4,1.17546]
[1745353812417,0.00884095,1700.5,1700.4,3.39245862]
[1745353813320,8.29566,1701.1,1701.0,1.17504]
[1745353813321,2.1504,1701.1,1701.0,1.17504]
[1745353813514,1.17511,1700.9,1700.8,7.2938]
[1745353813816,1.1751,1701.0,1700.9,1.17507]
[1745353814211,6.322,1701.0,1700.9,2.21001]
[1745353814613,6.322,1701.0,1700.9,3.99171]
[1745353814814,6.322,1701.0,1700.8,7.30264095]
[1745353815117,3.87451,1700.9,1700.8,4.09484095]
[1745353816119,15.19651,1700.9,1700.8,4.09484095]
[1745353816522,15.19651,1700.9,1700.8,5.27002095]
[1745353816717,15.19651,1700.9,1700.8,0.00884095]
[1745353817115,18.40431,1700.9,1700.8,0.00884095]
[1745353817315,15.19651,1700.9,1700.8,0.00884095]
[1745353817621,18.40431,1700.9,1700.8,0.00884095]
[1745353819119,15.19651,1700.9,1700.8,0.00884095]
[1745353819720,18.40431,1700.9,1700.8,0.00884095]
[1745353821427,15.19651,1700.9,1700.8,0.00884095]
[1745353821725,18.40431,1700.9,1700.8,0.00884095]
[1745353821924,15.19651,1700.9,1700.8,0.00884095]
[1745353822127,18.40431,1700.9,1700.8,0.00884095]
[1745353823025,13.40431,1700.9,1700.8,1.18402095]
[1745353823327,10.19651,1700.9,1700.8,0.00884095]
[1745353826032,13.40431,1700.9,1700.8,0.00884095]
[1745353826326,1.17518,1700.8,1700.7,0.2937]
[1745353826531,3.99058,1700.8,1700.7,0.2937]
[1745353827129,10.31258,1700.8,1700.7,0.2937]
[1745353836123,7.49718,1700.8,1700.7,1.46895]
[1745353836335,6.322,1700.8,1700.7,3.70705]
[1745353836536,7.49718,1700.8,1700.7,5.45485]
[1745353836734,6.322,1700.8,1700.7,9.53685]
[1745353838229,7.49718,1700.8,1700.7,8.3616]
[1745353838432,7.49718,1700.8,1700.7,9.53685]
[1745353838631,6.322,1700.8,1700.7,9.53685]
[1745353838940,7.49718,1700.8,1700.7,9.53685]
[1745353839940,7.49718,1700.8,1700.7,9.24315]
[1745353841135,7.49718,1700.8,1700.7,8.0679]
[1745353842042,9.15048,1700.8,1700.7,8.0679]
[1745353843448,9.15048,1700.8,1700.7,9.24315]
[1745353843845,9.15048,1700.8,1700.7,8.0679]
[1745353844941,9.15048,1700.8,1700.7,3.9859]
[1745353845541,9.15048,1700.8,1700.7,5.16115]
[1745353845542,6.322,1700.8,1700.7,5.16115]
[1745353846140,6.322,1700.8,1700.7,10.16115]
[1745353846338,6.31315905,1700.8,1700.7,10.16115]
[1745353850362,6.31315905,1700.8,1700.7,5.16115]
[1745353860171,7.48833905,1700.8,1700.7,5.16115]
[1745353860476,9.12273905,1700.8,1700.7,1.17525]
[1745353860973,10.22063905,1700.8,1700.7,1.17525]
[1745353862471,1.17525,1700.7,1700.6,6.45982095]
[1745353862675,1.7335,1700.7,1700.6,6.16612095]
[1745353863171,8.0555,1700.7,1700.6,6.16612095]
[1745353863776,10.36865,1700.7,1700.6,6.16612095]
[1745353863964,10.36865,1700.7,1700.6,4.39192095]
[1745353864168,10.36865,1700.7,1700.6,0.00884095]
[1745353864366,10.36865,1700.7,1700.6,1.18416095]
[1745353864567,10.36865,1700.7,1700.6,0.00884095]
[1745353872377,8.0555,1700.7,1700.6,1.18416095]
[1745353872573,6.322,1700.7,1700.6,8.27516095]
[1745353873073,6.322,1700.7,1700.6,19.09716095]
[1745353874277,0.00884095,1701.1,1701.0,1.17504]
[1745353874576,2.92972095,1701.1,1701.0,1.17504]
[1745353874775,2.92972095,1701.1,1701.0,2.89324]
[1745353875176,9.25172095,1701.1,1701.0,2.89324]
[1745353875776,9.25172095,1701.1,1701.0,1.17504]
[1745353875978,11.41502095,1701.1,1701.0,1.17504]
[1745353876180,1.17504,1701.0,1700.9,5.25007]
[1745353876481,2.92094,1701.0,1700.9,5.25007]
[1745353877276,9.24294,1701.0,1700.9,5.25007]
[1745353878884,9.24294,1701.0,1700.9,5.25011]
[1745353879881,1.17524,1700.8,1700.7,1.1752]
[1745353881184,7.49724,1700.8,1700.7,1.1752]
[1745353881782,7.49724,1700.8,1700.7,2.7844]
[1745353885793,7.49724,1700.8,1700.7,5.9922]
[1745353887292,9.13394,1700.8,1700.7,5.9922]
[1745353892591,6.322,1700.8,1700.7,5.9922]
[1745353892792,6.322,1700.8,1700.7,10.9922]
[1745353893290,0.00884095,1701.1,1701.0,1.17504]
[1745353893489,0.00884095,1701.1,1701.0,8.45784]
[1745353893689,0.00884095,1701.1,1701.0,11.39104]
[1745353896088,6.33084095,1701.1,1701.0,11.39104]
[1745353900205,0.00884095,1701.1,1701.0,11.39104]
[1745353906400,0.00884095,1701.1,1701.0,16.39104]
[1745353906605,0.00884095,1701.1,1701.0,11.39104]
[1745353906799,1.17459,1701.7,1701.0,15.216]
[1745353907009,2.81675,1701.8,1701.7,1.17456]
[1745353907212,6.17455,1701.8,1701.7,1.17456]
[1745353907411,46.97455,1701.8,1701.7,1.17456]
[1745353907602,45.8,1701.8,1701.7,1.17456]
[1745353907802,46.97449,1701.8,1701.7,1.17456]
[1745353908306,53.29649,1701.8,1701.7,1.17456]
[1745353908510,48.29649,1701.8,1701.7,1.17456]
[1745353908810,1.17456,1701.7,1701.6,3.93718446]
[1745353908997,1.17456,1701.7,1701.6,2.30328446]
[1745353909204,7.49656,1701.7,1701.6,0.00881446]
[1745353909404,7.49656,1701.7,1701.6,1.18344446]
[1745353910002,12.49656,1701.7,1701.6,0.00881446]
[1745353910204,1.17491,1701.3,1701.2,1.17487]
[1745353911212,8.65291,1701.3,1701.2,1.17487]
[1745353912712,7.49691,1701.3,1701.2,1.17487]
[1745353913112,7.49691,1701.3,1701.2,2.85347]
[1745353913715,7.49684,1701.3,1701.2,2.85347]
[1745353914005,7.49684,1701.3,1701.2,1.17487]
[1745353918006,1.17491,1701.2,1701.1,8.75544446]
[1745353918206,2.28351,1701.2,1701.1,8.75544446]
[1745353918407,2.28351,1701.2,1701.1,4.37271446]
[1745353918609,43.08351,1701.2,1701.1,4.37271446]
[1745353918815,43.08351,1701.2,1701.1,0.30271446]
[1745353919213,49.40551,1701.2,1701.1,0.30271446]
[1745353921018,49.40551,1701.2,1701.1,1.47769446]
[1745353921217,49.40551,1701.2,1701.1,0.30271446]
[1745353921916,59.37575,1701.2,1700.8,4.07]
[1745353922216,1.17511,1700.9,1700.8,4.07]
[1745353922517,1.17518,1700.8,1700.7,4.38299]
[1745353922713,3.35218,1700.8,1700.7,4.38299]
[1745353923114,8.499,1700.8,1700.7,4.38299]
[1745353923413,6.322,1700.8,1700.7,4.38299]
[1745353923616,6.322,1700.8,1700.7,5.43859]
[1745353923811,6.322,1700.8,1700.7,7.09799]
[1745353925716,7.49718,1700.8,1700.7,4.38299]
[1745353926017,8.58078,1700.8,1700.7,4.38299]
[1745353926521,10.34098,1700.8,1700.7,4.38299]
[1745353927114,8.0822,1700.8,1700.7,4.38299]
[1745353927316,6.322,1700.8,1700.7,4.38299]
[1745353927716,8.0822,1700.8,1700.7,4.38299]
[1745353928517,8.0822,1700.8,1700.7,5.49439]
[1745353929527,8.0822,1700.8,1700.7,7.19309]
[1745353930223,9.25738,1700.8,1700.7,3.2078]
[1745353930528,9.25738,1700.8,1700.6,1.47767446]
[1745353930529,1.17525,1700.7,1700.6,1.47767446]
[1745353930727,8.63602,1700.8,1700.7,1.17525]
[1745353930933,8.63602,1700.8,1700.7,2.87395]
[1745353931325,8.63602,1700.8,1700.7,6.08175]
[1745353931526,7.4608,1700.8,1700.7,6.08175]
[1745353931724,8.63598,1700.8,1700.7,6.08175]
[1745353931927,7.4608,1700.8,1700.7,6.08175]
[1745353932422,8.63598,1700.8,1700.7,6.08175]
[1745353937029,8.63598,1700.8,1700.7,2.87395]
[1745353938431,8.63598,1700.8,1700.7,1.17525]
[1745353938624,1.17525,1700.7,1700.6,1.47768446]
[1745353938826,1.17525,1700.7,1700.6,4.68548446]
[1745353939044,1.17525,1700.7,1700.6,3.51021446]
[1745353939326,7.49725,1700.7,1700.6,0.30241446]
[1745353939523,8.62285,1700.7,1700.6,0.30241446]
[1745353940126,8.62285,1700.7,1700.6,0.00881446]
[1745353940330,8.62285,1700.7,1700.6,1.18413446]
[1745353940730,8.62285,1700.7,1700.6,0.00881446]
[1745353941133,8.62285,1700.7,1700.6,1.18413446]
[1745353941633,8.62285,1700.7,1700.6,0.00881446]
[1745353944132,7.49725,1700.7,1700.6,1.18413446]
[1745353944328,7.49725,1700.7,1700.6,2.84303446]
[1745353944636,7.49725,1700.7,1700.6,6.05083446]
[1745353945135,6.322,1700.7,1700.6,6.05083446]
[1745353945731,7.49725,1700.7,1700.6,6.05083446]
[1745353945931,6.322,1700.7,1700.6,6.05083446]
[1745353946132,7.49725,1700.7,1700.6,6.05083446]
[1745353947339,6.322,1700.7,1700.6,6.05083446]
[1745353947931,7.49725,1700.7,1700.6,6.05083446]
[1745353949340,6.322,1700.7,1700.6,6.05083446]
[1745353950338,7.49725,1700.7,1700.6,6.05083446]
[1745353952834,6.322,1700.7,1700.6,6.05083446]
[1745353953232,7.49725,1700.7,1700.6,6.05083446]
[1745353955540,7.49725,1700.7,1700.6,2.84303446]
[1745353955728,7.49725,1700.7,1700.6,6.05083446]
[1745353957442,7.49725,1700.7,1700.6,2.84303446]
[1745353958140,7.49725,1700.7,1700.6,6.05083446]
[1745353958737,6.322,1700.7,1700.6,6.05083446]
[1745353958944,7.49725,1700.7,1700.6,6.05083446]
[1745353959140,7.49725,1700.7,1700.6,2.84303446]
[1745353959539,7.49725,1700.7,1700.6,6.05083446]
[1745353963447,7.49725,1700.7,1700.6,1.18413446]
[1745353963746,8.62145,1700.7,1700.6,1.18413446]
[1745353963946,10.37365,1700.7,1700.6,1.18413446]
[1745353965853,10.37365,1700.7,1700.6,4.39193446]
[1745353966044,10.37365,1700.7,1700.6,6.09643446]
[1745353968553,10.37365,1700.7,1700.6,3.21661446]
[1745353968846,16.33739828,1700.7,1700.3,3.2078]
[1745353969152,1.6668,1700.6,1700.4,1.17541]
[1745353969453,1.17543,1700.5,1700.4,2.88881]
[1745353969654,1.6668,1700.6,1700.5,1.17539]
[1745353969842,2.84212,1700.6,1700.5,2.88879]
[1745353970243,9.16412,1700.6,1700.5,2.88879]
[1745353970445,9.16412,1700.6,1700.5,1.7134]
[1745353970650,1.17539,1700.5,1700.4,1.1754]
[1745353970852,2.84219,1700.5,1700.4,1.1754]
[1745353971352,9.16419,1700.5,1700.4,1.1754]
[1745353971554,9.16419,1700.5,1700.4,2.8551]
[1745353977556,7.9888,1700.5,1700.4,2.8551]
[1745353977757,9.16419,1700.5,1700.4,2.8551]
[1745353981259,7.9888,1700.5,1700.4,2.8551]
[1745353981459,5.71677108,1700.5,1700.4,2.8551]
[1745353998668,5.71677108,1700.5,1700.4,6.9191]
[1745354000767,1.17558,1700.4,1700.3,0.00881446]
[1745354001069,8.10488,1700.4,1700.3,0.00881446]
[1745354001266,13.10488,1700.4,1700.3,0.00881446]
[1745354001566,9.89708,1700.4,1700.3,0.00881446]
[1745354001771,1.17592,1699.9,1699.8,1.17596]
[1745354002163,7.49792,1699.9,1699.8,1.17596]
[1745354002872,1.17599,1699.8,1699.7,9.01776996]
[1745354003170,4.89289,1699.8,1699.7,9.01385048]
[1745354003869,4.89289,1699.8,1699.7,7.83784048]
[1745354004173,1.17606,1699.7,1699.6,11.71986466]
[1745354004473,1.17613,1699.6,1699.5,1.17618]
[1745354004670,2.86189,1699.7,1699.6,1.17613]
[1745354005072,7.86189,1699.7,1699.6,1.17613]
[1745354005265,14.18389,1699.7,1699.6,1.17613]
[1745354005773,13.0078,1699.7,1699.6,1.17613]
[1745354005966,8.0078,1699.7,1699.6,1.17613]
[1745354006776,6.322,1699.7,1699.6,4.38393]
[1745354007068,6.322,1699.7,1699.6,11.22873]
[1745354007272,6.322,1699.7,1699.6,16.22873]
[1745354008273,1.6362,1699.9,1699.8,1.17599]
[1745354008474,1.63228052,1699.9,1699.8,1.17599]
[1745354009273,7.95428052,1699.9,1699.8,1.17599]
[1745354010982,7.95428052,1699.9,1699.8,4.38379]
[1745354014373,9.13023052,1699.9,1699.8,1.17599]
[1745354015082,1.17603,1699.8,1699.7,1.17603]
[1745354015275,3.82943,1699.8,1699.7,1.17211052]
[1745354015676,2.6534,1699.8,1699.7,1.17211052]
[1745354016080,8.9754,1699.8,1699.7,1.17211052]
[1745354016280,7.321,1699.8,1699.7,1.17211052]
[1745354016474,10.5288,1699.8,1699.5,1.17616]
[1745354016781,2.20679,1699.7,1699.6,1.17613]
[1745354016982,1.17618,1699.6,1699.5,1.17618]
[1745354017183,7.49818,1699.6,1699.5,1.17618]
[1745354017373,6.322,1699.6,1699.5,1.17618]
[1745354017574,7.49813,1699.6,1699.5,1.17618]
[1745354017978,1.17621,1699.5,1699.4,1.17621]
[1745354018180,2.13811,1699.5,1699.4,1.17621]
[1745354019269,8.46011,1699.5,1699.4,1.17621]
[1745354019470,7.2839,1699.5,1699.4,1.17621]
[1745354019873,8.4601,1699.5,1699.4,1.17621]
[1745354020983,7.2839,1699.5,1699.4,1.17621]
[1745354021185,8.4601,1699.5,1699.4,1.17621]
[1745354022280,8.4601,1699.5,1699.2,4.55542]
[1745354022281,1.17637,1699.3,1699.2,1.17636]
[1745354022481,1.17645,1699.2,1699.1,1.17644]
[1745354022679,3.18295,1699.2,1699.1,1.17644]
[1745354022985,6.39075,1699.2,1699.1,1.17644]
[1745354023280,12.71275,1699.2,1699.1,1.17644]
[1745354024284,11.5363,1699.2,1698.9,1.6867]
[1745354024485,1.17651,1699.1,1699.0,1.17651]
[1745354024885,12.71276,1699.2,1699.1,1.17648]
[1745354025090,6.39076,1699.2,1699.1,1.17648]
[1745354026083,12.71276,1699.2,1699.1,1.17648]
[1745354026592,1.1765,1699.1,1699.0,1.17649]
[1745354026781,2.9194,1699.1,1699.0,1.17649]
[1745354027284,1.17655,1699.0,1698.9,1.17658]
[1745354027486,2.91945,1699.0,1698.9,1.17658]